[Event "*** Titled Tuesday Blitz"]
[Site "Chess.com"]
[Date "2021.03.02"]
[Round "4"]
[White "ARTHURMOTIVATOR"]
[Black "zeitnot2006"]
[Result "1-0"]
[WhiteElo "2351"]
[BlackElo "2513"]
[TimeControl "180+1"]
[EndTime "10:41:09 PST"]
[Termination "ARTHURMOTIVATOR won by checkmate"]

1. e4 {[%clk 0:03:00.9]} 1... c5 {[%clk 0:02:56.2]} 2. b3 {[%clk 0:02:59]} 2...
d5 {[%clk 0:02:53.3]} 3. exd5 {[%clk 0:02:57.4]} 3... Qxd5 {[%clk 0:02:53.9]} 4.
Nc3 {[%clk 0:02:56]} 4... Qd7 {[%clk 0:02:51.1]} 5. Nf3 {[%clk 0:02:52]} 5... a6
{[%clk 0:02:49.3]} 6. Bc4 {[%clk 0:02:40.1]} 6... e6 {[%clk 0:02:46.9]} 7. a4
{[%clk 0:02:38]} 7... b6 {[%clk 0:02:44.1]} 8. O-O {[%clk 0:02:29.3]} 8... Bb7
{[%clk 0:02:38.9]} 9. Re1 {[%clk 0:02:28.3]} 9... Nc6 {[%clk 0:02:38.4]} 10. Nd5
{[%clk 0:02:15.6]} 10... Qd8 {[%clk 0:02:31.8]} 11. d3 {[%clk 0:01:44.1]} 11...
Nge7 {[%clk 0:02:18.9]} 12. Nf4 {[%clk 0:01:24.7]} 12... Ng6 {[%clk 0:02:13.8]}
13. Ng5 {[%clk 0:01:07.5]} 13... Nd4 {[%clk 0:01:56.9]} 14. Nfxe6 {[%clk
0:00:55.6]} 14... fxe6 {[%clk 0:01:51.4]} 15. Bxe6 {[%clk 0:00:55.2]} 15... Be7
{[%clk 0:01:42.7]} 16. Qg4 {[%clk 0:00:51]} 16... Nxe6 {[%clk 0:01:18.8]} 17.
Nxe6 {[%clk 0:00:48.2]} 17... Qd6 {[%clk 0:01:17.3]} 18. Nxg7+ {[%clk
0:00:37.8]} 18... Kf7 {[%clk 0:01:16.9]} 19. Bb2 {[%clk 0:00:23.3]} 19... Rhf8
{[%clk 0:01:10.2]} 20. Nf5 {[%clk 0:00:22.1]} 20... Qd5 {[%clk 0:01:07.2]} 21.
Rxe7+ {[%clk 0:00:21.9]} 21... Nxe7 {[%clk 0:00:58.5]} 22. Qg7+ {[%clk
0:00:21.4]} 22... Ke6 {[%clk 0:00:59]} 23. Re1+ {[%clk 0:00:15.7]} 23... Kxf5
{[%clk 0:00:57.3]} 24. Re5+ {[%clk 0:00:15.3]} 24... Qxe5 {[%clk 0:00:46.5]} 25.
Qxe5+ {[%clk 0:00:16.2]} 25... Kg6 {[%clk 0:00:45.8]} 26. Qg7+ {[%clk
0:00:15.8]} 26... Kf5 {[%clk 0:00:45.7]} 27. Qxe7 {[%clk 0:00:16.7]} 27... Rae8
{[%clk 0:00:44.2]} 28. Qd7+ {[%clk 0:00:14.7]} 28... Kg6 {[%clk 0:00:38.4]} 29.
h4 {[%clk 0:00:14.2]} 29... Bc8 {[%clk 0:00:34.8]} 30. Qg7+ {[%clk 0:00:13.1]}
30... Kf5 {[%clk 0:00:35.4]} 31. g4+ {[%clk 0:00:12.8]} 31... Ke6 {[%clk
0:00:34.5]} 32. Qc7 {[%clk 0:00:11.8]} 32... b5 {[%clk 0:00:31]} 33. f4 {[%clk
0:00:10]} 33... Re7 {[%clk 0:00:15.6]} 34. Qxc5 {[%clk 0:00:06.9]} 34... bxa4
{[%clk 0:00:13.4]} 35. Qc6+ {[%clk 0:00:05.8]} 35... Kf7 {[%clk 0:00:13.3]} 36.
f5 {[%clk 0:00:05.9]} 36... axb3 {[%clk 0:00:08.4]} 37. f6 {[%clk 0:00:06]}
37... Rb7 {[%clk 0:00:03]} 38. Qd5+ {[%clk 0:00:05.8]} 38... Ke8 {[%clk
0:00:02.7]} 39. Qh5+ {[%clk 0:00:06.5]} 39... Kd8 {[%clk 0:00:02.8]} 40. Qd5+
{[%clk 0:00:06.6]} 40... Ke8 {[%clk 0:00:03]} 41. Qc6+ {[%clk 0:00:06.4]} 41...
Kd8 {[%clk 0:00:03]} 42. Qd6+ {[%clk 0:00:06.3]} 42... Ke8 {[%clk 0:00:03.2]}
43. cxb3 {[%clk 0:00:05.7]} 43... Rff7 {[%clk 0:00:02.9]} 44. Qe5+ {[%clk
0:00:02.4]} 44... Kd8 {[%clk 0:00:03.1]} 45. Qh5 {[%clk 0:00:03.3]} 45... Rbd7
{[%clk 0:00:03]} 46. Qe5 {[%clk 0:00:03.3]} 46... Bb7 {[%clk 0:00:03.5]} 47. Ba3
{[%clk 0:00:03.3]} 47... Kc8 {[%clk 0:00:03.6]} 48. Be7 {[%clk 0:00:04.1]} 48...
Bc6 {[%clk 0:00:03.1]} 49. Qc5 {[%clk 0:00:05]} 49... Kb7 {[%clk 0:00:03.8]} 50.
Qb4+ {[%clk 0:00:05.1]} 50... Kc8 {[%clk 0:00:04.1]} 51. Qc3 {[%clk 0:00:06]}
51... Kc7 {[%clk 0:00:04.4]} 52. Qc4 {[%clk 0:00:06.9]} 52... Kb7 {[%clk
0:00:05.1]} 53. Qxf7 {[%clk 0:00:07.8]} 53... Rd5 {[%clk 0:00:05.7]} 54. Qe6
{[%clk 0:00:06.8]} 54... Kb6 {[%clk 0:00:06.6]} 55. Qe3+ {[%clk 0:00:06]} 55...
Kb5 {[%clk 0:00:06.8]} 56. d4 {[%clk 0:00:06.9]} 56... Rd7 {[%clk 0:00:06.6]}
57. Qd3+ {[%clk 0:00:07.4]} 57... Kb6 {[%clk 0:00:06.6]} 58. Qc4 {[%clk
0:00:08.3]} 58... Bb5 {[%clk 0:00:07]} 59. Qc5+ {[%clk 0:00:08.7]} 59... Ka5
{[%clk 0:00:07.5]} 60. d5 {[%clk 0:00:09]} 60... h5 {[%clk 0:00:08]} 61. Qb4+
{[%clk 0:00:08.8]} 61... Kb6 {[%clk 0:00:08.4]} 62. d6 {[%clk 0:00:09.7]} 62...
hxg4 {[%clk 0:00:08.5]} 63. Qxg4 {[%clk 0:00:07.4]} 63... Ka5 {[%clk 0:00:08.1]}
64. Qd4 {[%clk 0:00:06.2]} 64... Rb7 {[%clk 0:00:08.4]} 65. Kf2 {[%clk
0:00:05.4]} 65... Be8 {[%clk 0:00:09]} 66. Qc3+ {[%clk 0:00:05.6]} 66... Kb5
{[%clk 0:00:08.6]} 67. b4 {[%clk 0:00:06.5]} 67... Bf7 {[%clk 0:00:08.6]} 68.
Qc5+ {[%clk 0:00:06.8]} 68... Ka4 {[%clk 0:00:09.1]} 69. Qa5+ {[%clk 0:00:07.2]}
69... Kb3 {[%clk 0:00:08.7]} 70. Qxa6 {[%clk 0:00:08.1]} 70... Rxb4 {[%clk
0:00:08.5]} 71. d7 {[%clk 0:00:09]} 71... Rf4+ {[%clk 0:00:08.6]} 72. Ke3 {[%clk
0:00:07.7]} 72... Rxh4 {[%clk 0:00:08.6]} 73. d8=Q {[%clk 0:00:07.5]} 73... Rh3+
{[%clk 0:00:09.4]} 74. Kf4 {[%clk 0:00:06.2]} 74... Rh4+ {[%clk 0:00:09]} 75.
Kg3 {[%clk 0:00:06.3]} 75... Rc4 {[%clk 0:00:09.8]} 76. Qdb6+ {[%clk 0:00:06.1]}
76... Kc3 {[%clk 0:00:09.9]} 77. Qe3+ {[%clk 0:00:06.1]} 77... Kb2 {[%clk
0:00:09.6]} 78. Qaa3+ {[%clk 0:00:06.3]} 78... Kc2 {[%clk 0:00:09.7]} 79. Qed3#
{[%clk 0:00:06.8]} 1-0

[Event "*** Titled Tuesday Blitz"]
[Site "Chess.com"]
[Date "2021.03.02"]
[Round "4"]
[White "Yaacovn"]
[Black "rasmussvane"]
[Result "0-1"]
[WhiteElo "2785"]
[BlackElo "2966"]
[TimeControl "180+1"]
[EndTime "10:41:11 PST"]
[Termination "rasmussvane won on time"]

1. d4 {[%clk 0:03:00.9]} 1... d5 {[%clk 0:02:59.9]} 2. Nf3 {[%clk 0:02:58.7]}
2... e6 {[%clk 0:03:00.1]} 3. Bf4 {[%clk 0:02:58.2]} 3... Bd6 {[%clk 0:03:00.2]}
4. e3 {[%clk 0:02:56.7]} 4... Nf6 {[%clk 0:02:58.4]} 5. c3 {[%clk 0:02:55.6]}
5... O-O {[%clk 0:02:44.6]} 6. Nbd2 {[%clk 0:02:55.7]} 6... c5 {[%clk
0:02:43.6]} 7. Rc1 {[%clk 0:02:52.2]} 7... b6 {[%clk 0:02:40.4]} 8. Bg3 {[%clk
0:02:49]} 8... Qc7 {[%clk 0:02:33.9]} 9. Bd3 {[%clk 0:02:46.3]} 9... Bb7 {[%clk
0:02:32.3]} 10. O-O {[%clk 0:02:41.4]} 10... Nbd7 {[%clk 0:02:32.3]} 11. c4
{[%clk 0:02:37.9]} 11... Bxg3 {[%clk 0:02:31]} 12. hxg3 {[%clk 0:02:38.2]} 12...
dxc4 {[%clk 0:01:57.6]} 13. Nxc4 {[%clk 0:02:36.1]} 13... Rad8 {[%clk
0:01:43.5]} 14. Qe2 {[%clk 0:02:29]} 14... Qb8 {[%clk 0:01:42.4]} 15. Rfd1
{[%clk 0:02:22.6]} 15... h6 {[%clk 0:01:36.9]} 16. a3 {[%clk 0:02:21.5]} 16...
cxd4 {[%clk 0:01:29.6]} 17. Nxd4 {[%clk 0:02:19]} 17... Nc5 {[%clk 0:01:30.1]}
18. Bb1 {[%clk 0:02:14.4]} 18... Rd7 {[%clk 0:01:27.5]} 19. Nb5 {[%clk
0:01:46.7]} 19... Rfd8 {[%clk 0:01:23.8]} 20. Rxd7 {[%clk 0:01:46.3]} 20... Rxd7
{[%clk 0:01:24.4]} 21. Rd1 {[%clk 0:01:27.1]} 21... Bd5 {[%clk 0:01:20.3]} 22.
Nc3 {[%clk 0:01:23.1]} 22... Bc6 {[%clk 0:01:09.7]} 23. Rxd7 {[%clk 0:01:22.6]}
23... Ncxd7 {[%clk 0:01:10.6]} 24. Qd2 {[%clk 0:01:21.1]} 24... g6 {[%clk
0:01:06.4]} 25. Qd6 {[%clk 0:01:06.1]} 25... Qxd6 {[%clk 0:00:54.4]} 26. Nxd6
{[%clk 0:01:07]} 26... Kf8 {[%clk 0:00:53.9]} 27. e4 {[%clk 0:01:01.3]} 27...
Ne8 {[%clk 0:00:47]} 28. Nxe8 {[%clk 0:00:58.8]} 28... Kxe8 {[%clk 0:00:47.9]}
29. f3 {[%clk 0:00:59.1]} 29... Ke7 {[%clk 0:00:47.8]} 30. Kf2 {[%clk
0:00:58.4]} 30... Ne5 {[%clk 0:00:43.9]} 31. b3 {[%clk 0:00:53]} 31... g5 {[%clk
0:00:42.3]} 32. g4 {[%clk 0:00:49.9]} 32... Kd6 {[%clk 0:00:39.9]} 33. Ke3
{[%clk 0:00:49.9]} 33... Kc5 {[%clk 0:00:36.9]} 34. Bd3 {[%clk 0:00:47.1]} 34...
a5 {[%clk 0:00:36.1]} 35. Na2 {[%clk 0:00:41.9]} 35... Bd7 {[%clk 0:00:31.3]}
36. b4+ {[%clk 0:00:40.7]} 36... Kd6 {[%clk 0:00:31.8]} 37. Nc3 {[%clk
0:00:38.9]} 37... axb4 {[%clk 0:00:26.9]} 38. axb4 {[%clk 0:00:39.8]} 38... Nc6
{[%clk 0:00:27.5]} 39. Na2 {[%clk 0:00:39.7]} 39... Bc8 {[%clk 0:00:25.9]} 40.
Bb5 {[%clk 0:00:39]} 40... Ne5 {[%clk 0:00:26.2]} 41. Nc3 {[%clk 0:00:37]} 41...
f5 {[%clk 0:00:26]} 42. exf5 {[%clk 0:00:35.5]} 42... exf5 {[%clk 0:00:26.9]}
43. gxf5 {[%clk 0:00:35.4]} 43... Bxf5 {[%clk 0:00:27.8]} 44. Be2 {[%clk
0:00:34.9]} 44... Ng6 {[%clk 0:00:25.9]} 45. g3 {[%clk 0:00:34.5]} 45... Bd7
{[%clk 0:00:23.7]} 46. f4 {[%clk 0:00:32.8]} 46... gxf4+ {[%clk 0:00:24.6]} 47.
gxf4 {[%clk 0:00:33.1]} 47... Ne7 {[%clk 0:00:25.2]} 48. Ne4+ {[%clk 0:00:31.1]}
48... Kd5 {[%clk 0:00:25]} 49. Nf6+ {[%clk 0:00:31.2]} 49... Ke6 {[%clk
0:00:23.2]} 50. Nxd7 {[%clk 0:00:29.6]} 50... Kxd7 {[%clk 0:00:24.1]} 51. Ke4
{[%clk 0:00:30.1]} 51... Ke6 {[%clk 0:00:24.2]} 52. f5+ {[%clk 0:00:29.2]} 52...
Kf6 {[%clk 0:00:23.9]} 53. Bg4 {[%clk 0:00:29.2]} 53... Kg5 {[%clk 0:00:23.8]}
54. Bh3 {[%clk 0:00:29]} 54... Kf6 {[%clk 0:00:14.2]} 55. b5 {[%clk 0:00:28.8]}
55... h5 {[%clk 0:00:13.4]} 56. Kf4 {[%clk 0:00:21.5]} 56... Nd5+ {[%clk
0:00:13]} 57. Kf3 {[%clk 0:00:21.7]} 57... Nc3 {[%clk 0:00:12.6]} 58. Kg3 {[%clk
0:00:16.8]} 58... Kg5 {[%clk 0:00:10.8]} 59. Bf1 {[%clk 0:00:12.2]} 59... Ne4+
{[%clk 0:00:07.9]} 60. Kh3 {[%clk 0:00:10.5]} 60... Nd6 {[%clk 0:00:07.5]} 61.
Be2 {[%clk 0:00:08.8]} 61... Nxf5 {[%clk 0:00:07.3]} 62. Bd3 {[%clk 0:00:09.3]}
62... Nd4 {[%clk 0:00:06.3]} 63. Bf1 {[%clk 0:00:08.9]} 63... h4 {[%clk
0:00:06.9]} 64. Bd3 {[%clk 0:00:09]} 64... Ne6 {[%clk 0:00:07.2]} 65. Kh2 {[%clk
0:00:08.4]} 65... Nf4 {[%clk 0:00:07.7]} 66. Bc4 {[%clk 0:00:08.4]} 66... Kf6
{[%clk 0:00:08.2]} 67. Kg1 {[%clk 0:00:08.5]} 67... Ke5 {[%clk 0:00:09.1]} 68.
Kf2 {[%clk 0:00:08.7]} 68... Ke4 {[%clk 0:00:09.8]} 69. Bf1 {[%clk 0:00:08.9]}
69... Kf5 {[%clk 0:00:10]} 70. Kf3 {[%clk 0:00:09.1]} 70... Kg5 {[%clk
0:00:09.4]} 71. Ke4 {[%clk 0:00:09.2]} 71... Kg4 {[%clk 0:00:09]} 72. Ke5 {[%clk
0:00:09.1]} 72... Kg3 {[%clk 0:00:09.2]} 73. Bc4 {[%clk 0:00:07.9]} 73... h3
{[%clk 0:00:09]} 74. Bd3 {[%clk 0:00:02.6]} 74... Nxd3+ {[%clk 0:00:08.9]} 0-1

[Event "*** Titled Tuesday Blitz"]
[Site "Chess.com"]
[Date "2021.03.02"]
[Round "4"]
[White "whogeeyao"]
[Black "esrosenberg"]
[Result "1/2-1/2"]
[WhiteElo "2397"]
[BlackElo "2195"]
[TimeControl "180+1"]
[EndTime "10:41:11 PST"]
[Termination "Game drawn - insufficient material"]

1. e4 {[%clk 0:03:00.9]} 1... e5 {[%clk 0:02:59.9]} 2. Nf3 {[%clk 0:03:00.8]}
2... Nc6 {[%clk 0:03:00.3]} 3. Bb5 {[%clk 0:03:00.8]} 3... a6 {[%clk 0:03:00.1]}
4. Ba4 {[%clk 0:03:00.7]} 4... Nf6 {[%clk 0:03:00.2]} 5. O-O {[%clk 0:03:00.7]}
5... Be7 {[%clk 0:03:00.5]} 6. d3 {[%clk 0:03:00.6]} 6... b5 {[%clk 0:03:00.4]}
7. Bb3 {[%clk 0:03:00.7]} 7... d6 {[%clk 0:02:56.5]} 8. a3 {[%clk 0:03:00.7]}
8... Bg4 {[%clk 0:02:51.1]} 9. Be3 {[%clk 0:02:34]} 9... O-O {[%clk 0:02:30.3]}
10. Nc3 {[%clk 0:02:21.7]} 10... Nd4 {[%clk 0:02:21.9]} 11. Bxd4 {[%clk
0:02:20.5]} 11... exd4 {[%clk 0:02:14.9]} 12. Nd5 {[%clk 0:02:20.5]} 12... c6
{[%clk 0:01:57.3]} 13. Nxe7+ {[%clk 0:02:18.7]} 13... Qxe7 {[%clk 0:01:57.4]}
14. h3 {[%clk 0:02:19.6]} 14... Bxf3 {[%clk 0:01:55.3]} 15. Qxf3 {[%clk
0:02:20.5]} 15... Nd7 {[%clk 0:01:49.9]} 16. Qg3 {[%clk 0:02:16.6]} 16... Kh8
{[%clk 0:01:39.8]} 17. f4 {[%clk 0:02:14.8]} 17... Nb6 {[%clk 0:01:23.9]} 18.
Rae1 {[%clk 0:01:48.9]} 18... c5 {[%clk 0:01:21.5]} 19. e5 {[%clk 0:01:46.5]}
19... c4 {[%clk 0:01:16.8]} 20. Ba2 {[%clk 0:01:45.3]} 20... d5 {[%clk
0:01:14.3]} 21. f5 {[%clk 0:01:40.4]} 21... f6 {[%clk 0:01:00.9]} 22. exf6
{[%clk 0:01:29.2]} 22... Qxf6 {[%clk 0:01:01.2]} 23. Re6 {[%clk 0:01:28.9]}
23... Qd8 {[%clk 0:01:01.6]} 24. Qe5 {[%clk 0:01:22.2]} 24... Nd7 {[%clk
0:00:39.6]} 25. Qxd5 {[%clk 0:01:12.8]} 25... Nf6 {[%clk 0:00:39.8]} 26. Qxd8
{[%clk 0:01:06.6]} 26... Raxd8 {[%clk 0:00:38.5]} 27. dxc4 {[%clk 0:01:06.4]}
27... d3 {[%clk 0:00:31.9]} 28. cxd3 {[%clk 0:01:05.4]} 28... Rxd3 {[%clk
0:00:32.4]} 29. Rxa6 {[%clk 0:01:04.4]} 29... Rd2 {[%clk 0:00:30]} 30. cxb5
{[%clk 0:00:54.1]} 30... Rxb2 {[%clk 0:00:28.2]} 31. Bc4 {[%clk 0:00:54.6]}
31... Ne4 {[%clk 0:00:24.7]} 32. Bd5 {[%clk 0:00:39.6]} 32... Ng3 {[%clk
0:00:19.4]} 33. Re1 {[%clk 0:00:24.5]} 33... Rxb5 {[%clk 0:00:18.1]} 34. Be6
{[%clk 0:00:16.4]} 34... h6 {[%clk 0:00:18.1]} 35. a4 {[%clk 0:00:13.1]} 35...
Rc5 {[%clk 0:00:17.9]} 36. a5 {[%clk 0:00:12.6]} 36... Nxf5 {[%clk 0:00:13.1]}
37. Ra7 {[%clk 0:00:12]} 37... Nd4 {[%clk 0:00:12.3]} 38. a6 {[%clk 0:00:11.9]}
38... Nxe6 {[%clk 0:00:11.9]} 39. Rxe6 {[%clk 0:00:12.8]} 39... Rc1+ {[%clk
0:00:11.8]} 40. Kh2 {[%clk 0:00:12.9]} 40... Ra1 {[%clk 0:00:12.4]} 41. Rg6
{[%clk 0:00:12.4]} 41... Rg8 {[%clk 0:00:10.7]} 42. Rb7 {[%clk 0:00:12.2]} 42...
Kh7 {[%clk 0:00:10.1]} 43. Rgb6 {[%clk 0:00:10.2]} 43... Ra8 {[%clk 0:00:10]}
44. Rb3 {[%clk 0:00:07.8]} 44... R1xa6 {[%clk 0:00:09.4]} 45. Rg3 {[%clk
0:00:08.3]} 45... Rg6 {[%clk 0:00:09]} 46. Rc3 {[%clk 0:00:07.9]} 46... Raa6
{[%clk 0:00:08.7]} 47. Rb2 {[%clk 0:00:07.2]} 47... Raf6 {[%clk 0:00:08.1]} 48.
Re2 {[%clk 0:00:07.3]} 48... Rf5 {[%clk 0:00:08]} 49. Rd3 {[%clk 0:00:07.5]}
49... Rfg5 {[%clk 0:00:08.3]} 50. Red2 {[%clk 0:00:07.8]} 50... Rf5 {[%clk
0:00:07.4]} 51. Rd7 {[%clk 0:00:08.2]} 51... Rfg5 {[%clk 0:00:05.7]} 52. R7d4
{[%clk 0:00:08.5]} 52... h5 {[%clk 0:00:05.9]} 53. h4 {[%clk 0:00:08.9]} 53...
Rg4 {[%clk 0:00:06.1]} 54. Rxg4 {[%clk 0:00:08.3]} 54... Rxg4 {[%clk 0:00:06.4]}
55. Kh3 {[%clk 0:00:09.2]} 55... Kh6 {[%clk 0:00:06.3]} 56. Rd6+ {[%clk
0:00:09.3]} 56... Rg6 {[%clk 0:00:06.5]} 57. Rd5 {[%clk 0:00:09.7]} 57... Rf6
{[%clk 0:00:06.8]} 58. Rg5 {[%clk 0:00:09.6]} 58... Rg6 {[%clk 0:00:06.8]} 59.
Rf5 {[%clk 0:00:09.6]} 59... Re6 {[%clk 0:00:06.5]} 60. g3 {[%clk 0:00:09.4]}
60... Re3 {[%clk 0:00:06]} 61. Ra5 {[%clk 0:00:09.3]} 61... Re6 {[%clk
0:00:05.7]} 62. Ra7 {[%clk 0:00:09.2]} 62... Rf6 {[%clk 0:00:05.7]} 63. Rd7
{[%clk 0:00:09.7]} 63... Re6 {[%clk 0:00:06]} 64. Rd1 {[%clk 0:00:10.6]} 64...
Rf6 {[%clk 0:00:06.3]} 65. Rh1 {[%clk 0:00:11.1]} 65... Rf3 {[%clk 0:00:05.7]}
66. Kg2 {[%clk 0:00:11.5]} 66... Ra3 {[%clk 0:00:05.7]} 67. Rd1 {[%clk
0:00:11.6]} 67... Ra2+ {[%clk 0:00:06]} 68. Kf3 {[%clk 0:00:12.5]} 68... Ra3+
{[%clk 0:00:06.5]} 69. Kf4 {[%clk 0:00:12.4]} 69... Ra4+ {[%clk 0:00:06.9]} 70.
Kf3 {[%clk 0:00:12.6]} 70... Ra3+ {[%clk 0:00:07.3]} 71. Kf4 {[%clk 0:00:12.9]}
71... Ra4+ {[%clk 0:00:07.7]} 72. Ke3 {[%clk 0:00:13.2]} 72... Ra3+ {[%clk
0:00:08]} 73. Kf2 {[%clk 0:00:14.1]} 73... Ra2+ {[%clk 0:00:08.5]} 74. Kg1
{[%clk 0:00:14.6]} 74... Rb2 {[%clk 0:00:08.7]} 75. Rf1 {[%clk 0:00:14.4]} 75...
Rc2 {[%clk 0:00:08.6]} 76. Rf4 {[%clk 0:00:14.5]} 76... Rb2 {[%clk 0:00:08.2]}
77. Rf2 {[%clk 0:00:14.7]} 77... Rxf2 {[%clk 0:00:08]} 78. Kxf2 {[%clk
0:00:15.6]} 78... g5 {[%clk 0:00:08.6]} 79. hxg5+ {[%clk 0:00:14.5]} 79... Kxg5
{[%clk 0:00:08.9]} 80. Kf3 {[%clk 0:00:14.6]} 80... h4 {[%clk 0:00:08.1]} 81.
gxh4+ {[%clk 0:00:15.5]} 81... Kxh4 {[%clk 0:00:08.4]} 1/2-1/2

[Event "*** Titled Tuesday Blitz"]
[Site "Chess.com"]
[Date "2021.03.02"]
[Round "4"]
[White "digilik"]
[Black "NiranjanNavalgund"]
[Result "1/2-1/2"]
[WhiteElo "2250"]
[BlackElo "2425"]
[TimeControl "180+1"]
[EndTime "10:41:19 PST"]
[Termination "Game drawn - insufficient material"]

1. e4 {[%clk 0:03:00.9]} 1... e5 {[%clk 0:02:59.1]} 2. Nf3 {[%clk 0:03:01.3]}
2... Nc6 {[%clk 0:02:58]} 3. Nc3 {[%clk 0:03:01.7]} 3... Nf6 {[%clk 0:02:54.4]}
4. Bb5 {[%clk 0:03:02]} 4... Bb4 {[%clk 0:02:53.8]} 5. O-O {[%clk 0:03:02.2]}
5... O-O {[%clk 0:02:52.6]} 6. d3 {[%clk 0:03:02.6]} 6... d6 {[%clk 0:02:51.7]}
7. Bg5 {[%clk 0:03:03]} 7... Ne7 {[%clk 0:02:45.5]} 8. Nh4 {[%clk 0:02:42.3]}
8... c6 {[%clk 0:02:43.1]} 9. Ba4 {[%clk 0:02:40.2]} 9... Bxc3 {[%clk
0:02:40.8]} 10. bxc3 {[%clk 0:02:41.1]} 10... d5 {[%clk 0:02:39.6]} 11. f4
{[%clk 0:02:10.1]} 11... Ng4 {[%clk 0:02:39.2]} 12. f5 {[%clk 0:01:37.9]} 12...
Nf6 {[%clk 0:02:17.2]} 13. Bxf6 {[%clk 0:01:33.2]} 13... gxf6 {[%clk 0:02:13.6]}
14. Rf3 {[%clk 0:01:10.5]} 14... dxe4 {[%clk 0:02:10.9]} 15. Rh3 {[%clk
0:01:10.5]} 15... Nxf5 {[%clk 0:02:06.1]} 16. Nxf5 {[%clk 0:00:47.5]} 16... Bxf5
{[%clk 0:02:05.5]} 17. Rg3+ {[%clk 0:00:48.4]} 17... Kh8 {[%clk 0:02:03.9]} 18.
Qf1 {[%clk 0:00:48.4]} 18... Bg6 {[%clk 0:02:00.9]} 19. dxe4 {[%clk 0:00:39.7]}
19... Bxe4 {[%clk 0:02:00.4]} 20. Rd1 {[%clk 0:00:40.1]} 20... Qe7 {[%clk
0:01:42.4]} 21. Rd7 {[%clk 0:00:29.3]} 21... Qe6 {[%clk 0:01:34.2]} 22. Bb3
{[%clk 0:00:17.5]} 22... Qf5 {[%clk 0:01:30.4]} 23. Bxf7 {[%clk 0:00:10.3]}
23... Qxf1+ {[%clk 0:01:26.7]} 24. Kxf1 {[%clk 0:00:11.2]} 24... b6 {[%clk
0:01:09]} 25. Bc4 {[%clk 0:00:10.2]} 25... Rfd8 {[%clk 0:01:05.1]} 26. Rc7
{[%clk 0:00:09.3]} 26... b5 {[%clk 0:01:00.8]} 27. Bd3 {[%clk 0:00:08.6]} 27...
Bxd3+ {[%clk 0:00:54.5]} 28. cxd3 {[%clk 0:00:09.5]} 28... Rdc8 {[%clk
0:00:51.8]} 29. Rf7 {[%clk 0:00:08.6]} 29... Rf8 {[%clk 0:00:51.7]} 30. Rc7
{[%clk 0:00:09]} 30... Rfc8 {[%clk 0:00:45.6]} 31. Rf7 {[%clk 0:00:08.8]} 31...
Rg8 {[%clk 0:00:33.7]} 32. Rf3 {[%clk 0:00:06.1]} 32... Rad8 {[%clk 0:00:27.6]}
33. R7xf6 {[%clk 0:00:05.2]} 33... Rg6 {[%clk 0:00:23.4]} 34. Rf7 {[%clk
0:00:05]} 34... a5 {[%clk 0:00:20.6]} 35. Rh3 {[%clk 0:00:04.9]} 35... h6 {[%clk
0:00:20]} 36. Rhf3 {[%clk 0:00:02.7]} 36... Kg8 {[%clk 0:00:20.1]} 37. g3 {[%clk
0:00:03.1]} 37... a4 {[%clk 0:00:16.4]} 38. Ke2 {[%clk 0:00:03.4]} 38... Rgd6
{[%clk 0:00:14.9]} 39. Rc7 {[%clk 0:00:02.6]} 39... e4 {[%clk 0:00:13.8]} 40.
dxe4 {[%clk 0:00:02.5]} 40... Rd2+ {[%clk 0:00:13.8]} 41. Ke3 {[%clk 0:00:03.1]}
41... Rxa2 {[%clk 0:00:13.4]} 42. Kf4 {[%clk 0:00:03.5]} 42... Rf8+ {[%clk
0:00:12]} 43. Ke3 {[%clk 0:00:03.3]} 43... Rxf3+ {[%clk 0:00:09.7]} 44. Kxf3
{[%clk 0:00:04.2]} 44... Rxh2 {[%clk 0:00:10]} 45. Rxc6 {[%clk 0:00:04.4]} 45...
Rc2 {[%clk 0:00:10.6]} 46. Kf4 {[%clk 0:00:03.6]} 46... b4 {[%clk 0:00:10.3]}
47. Ra6 {[%clk 0:00:01.8]} 47... b3 {[%clk 0:00:04.6]} 48. Rxa4 {[%clk
0:00:01.4]} 48... Rxc3 {[%clk 0:00:05.5]} 49. Rb4 {[%clk 0:00:02]} 49... Kf7
{[%clk 0:00:05.5]} 50. Kf5 {[%clk 0:00:02.1]} 50... Rxg3 {[%clk 0:00:05]} 51.
Rb7+ {[%clk 0:00:02.7]} 51... Ke8 {[%clk 0:00:05.5]} 52. e5 {[%clk 0:00:03.3]}
52... Kd8 {[%clk 0:00:05.8]} 53. Ke6 {[%clk 0:00:02.8]} 53... Re3 {[%clk
0:00:06.2]} 54. Kd6 {[%clk 0:00:02.6]} 54... Kc8 {[%clk 0:00:06.5]} 55. Rc7+
{[%clk 0:00:03.1]} 55... Kb8 {[%clk 0:00:06.5]} 56. Rc4 {[%clk 0:00:04]} 56...
Rd3+ {[%clk 0:00:06.6]} 57. Ke7 {[%clk 0:00:04.3]} 57... Ka7 {[%clk 0:00:06.6]}
58. Rb4 {[%clk 0:00:04]} 58... Ka6 {[%clk 0:00:06.2]} 59. e6 {[%clk 0:00:04.2]}
59... Ka5 {[%clk 0:00:06.7]} 60. Rb8 {[%clk 0:00:04.5]} 60... Ka4 {[%clk
0:00:06.8]} 61. Kf8 {[%clk 0:00:04.8]} 61... Re3 {[%clk 0:00:06.2]} 62. e7
{[%clk 0:00:05]} 62... Ka3 {[%clk 0:00:04.8]} 63. e8=Q {[%clk 0:00:03.9]} 63...
Rxe8+ {[%clk 0:00:05.3]} 64. Kxe8 {[%clk 0:00:04.6]} 64... b2 {[%clk 0:00:05.6]}
65. Kf7 {[%clk 0:00:04.9]} 65... h5 {[%clk 0:00:06.1]} 66. Ke6 {[%clk
0:00:04.5]} 66... h4 {[%clk 0:00:07]} 67. Ke5 {[%clk 0:00:03.9]} 67... Ka2
{[%clk 0:00:07.4]} 68. Kf4 {[%clk 0:00:03.5]} 68... b1=Q {[%clk 0:00:06.9]} 69.
Ra8+ {[%clk 0:00:02.8]} 69... Kb2 {[%clk 0:00:06.8]} 70. Rb8+ {[%clk 0:00:03.7]}
70... Kc1 {[%clk 0:00:07.7]} 71. Rxb1+ {[%clk 0:00:04.6]} 71... Kxb1 {[%clk
0:00:08.6]} 72. Kg4 {[%clk 0:00:05.1]} 72... h3 {[%clk 0:00:08.9]} 73. Kxh3
{[%clk 0:00:06]} 1/2-1/2